fUST/lending_fUST_20260520
["ID","MTS","AMOUNT","RATE_DAILY","PERIOD"]
[422688952,1779249038000,-500.0,8.018e-05,2]
[422688953,1779249038000,-500.0,8.018e-05,2]
[422688955,1779249038000,-500.0,8.018e-05,2]
[422688957,1779249038000,-500.0,8.018e-05,2]
[422688946,1779249038000,-500.0,8.018e-05,2]
[422688961,1779249038000,-500.0,8.018e-05,2]
[422688963,1779249038000,-500.0,8.018e-05,2]
[422688954,1779249038000,-500.0,8.018e-05,2]
[422688958,1779249038000,-500.0,8.018e-05,2]
[422688960,1779249038000,-500.0,8.018e-05,2]
[422688944,1779249038000,-500.0,8.018e-05,2]
[422688943,1779249038000,-500.0,8.018e-05,2]
[422688956,1779249038000,-500.0,8.018e-05,2]
[422688947,1779249038000,-500.0,8.018e-05,2]
[422688951,1779249038000,-500.0,8.018e-05,2]
[422688941,1779249038000,-500.0,8.018e-05,2]
[422688939,1779249038000,-169.07625233,8.018e-05,2]
[422688950,1779249038000,-500.0,8.018e-05,2]
[422688940,1779249038000,-246.03565544,8.018e-05,2]
[422688938,1779249038000,-500.0,8.018e-05,2]
[422688936,1779249038000,-266.34495394,8.018e-05,2]
[422688937,1779249038000,-500.0,8.018e-05,2]
[422688935,1779249038000,-233.65504606,8.018e-05,2]
[422688934,1779249038000,-128.51289042,8.018e-05,2]
[422688933,1779249038000,-371.48710958,8.018e-05,2]
[422688932,1779249038000,-381.78065493,7.584e-05,2]
[422688942,1779249038000,-500.0,8.018e-05,2]
[422688959,1779249038000,-500.0,8.018e-05,2]
[422688948,1779249038000,-395.776965,8.018e-05,2]
[422688962,1779249038000,-500.0,8.018e-05,2]
[422688991,1779249038000,-500.0,8.018e-05,2]
[422688994,1779249038000,-500.0,8.018e-05,2]
[422688990,1779249038000,-500.0,8.018e-05,2]
[422688992,1779249038000,-500.0,8.018e-05,2]
[422688993,1779249038000,-500.0,8.018e-05,2]
[422688989,1779249038000,-500.0,8.018e-05,2]
[422688988,1779249038000,-500.0,8.018e-05,2]
[422688987,1779249038000,-500.0,8.018e-05,2]
[422688964,1779249038000,-461.0841196,8.018e-05,2]
[422688985,1779249038000,-500.0,8.018e-05,2]
[422688984,1779249038000,-500.0,8.018e-05,2]
[422688982,1779249038000,-500.0,8.018e-05,2]
[422688983,1779249038000,-500.0,8.018e-05,2]
[422688978,1779249038000,-500.0,8.018e-05,2]
[422688980,1779249038000,-500.0,8.018e-05,2]
[422688986,1779249038000,-500.0,8.018e-05,2]
[422688977,1779249038000,-500.0,8.018e-05,2]
[422688976,1779249038000,-500.0,8.018e-05,2]
[422688965,1779249038000,-500.0,8.018e-05,2]
[422688966,1779249038000,-500.0,8.018e-05,2]
[422688968,1779249038000,-500.0,8.018e-05,2]
[422688970,1779249038000,-500.0,8.018e-05,2]
[422688971,1779249038000,-500.0,8.018e-05,2]
[422688969,1779249038000,-500.0,8.018e-05,2]
[422688972,1779249038000,-500.0,8.018e-05,2]
[422688973,1779249038000,-500.0,8.018e-05,2]
[422688975,1779249038000,-500.0,8.018e-05,2]
[422688974,1779249038000,-500.0,8.018e-05,2]
[422688979,1779249038000,-500.0,8.018e-05,2]
[422688981,1779249038000,-500.0,8.018e-05,2]
[422688967,1779249038000,-500.0,8.018e-05,2]
[422689047,1779249039000,-38061.34275486,8.119e-05,2]
[422689042,1779249039000,-500.45719674,8.117e-05,2]
[422689043,1779249039000,-500.45719674,8.117e-05,2]
[422689038,1779249039000,-500.45719674,8.117e-05,2]
[422689036,1779249039000,-500.45719674,8.117e-05,2]
[422689037,1779249039000,-500.45719674,8.117e-05,2]
[422689034,1779249039000,-500.45719674,8.117e-05,2]
[422689031,1779249039000,-500.45719674,8.117e-05,2]
[422689023,1779249039000,-104791.5926647,8.019e-05,2]
[422689029,1779249039000,-500.45719674,8.117e-05,2]
[422689025,1779249039000,-200.76990752,8.1e-05,2]
[422689033,1779249039000,-500.45719674,8.117e-05,2]
[422689035,1779249039000,-500.45719674,8.117e-05,2]
[422689040,1779249039000,-500.45719674,8.117e-05,2]
[422689059,1779249039000,-1139.09162923,8.211e-05,2]
[422689046,1779249039000,-1139.09162923,8.118e-05,2]
[422689045,1779249039000,-300.0,8.117e-05,2]
[422689041,1779249039000,-500.45719674,8.117e-05,2]
[422689044,1779249039000,-1022.82026215,8.117e-05,2]
[422689048,1779249039000,-766.43500783,8.128e-05,2]
[422689050,1779249039000,-160.0,8.128e-05,2]
[422689051,1779249039000,-160.0,8.128e-05,2]
[422689060,1779249039000,-500.0,8.219e-05,2]
[422689049,1779249039000,-161.70661154,8.128e-05,2]
[422689052,1779249039000,-160.0,8.128e-05,2]
[422689053,1779249039000,-152.0,8.144e-05,7]
[422689054,1779249039000,-152.0,8.144e-05,7]
[422689057,1779249039000,-152.0,8.182e-05,2]
[422689027,1779249039000,-500.45719674,8.117e-05,2]
[422689039,1779249039000,-500.45719674,8.117e-05,2]
[422689030,1779249039000,-500.45719674,8.117e-05,2]
[422689010,1779249039000,-500.0,8.018e-05,2]
[422689028,1779249039000,-500.45719674,8.117e-05,2]
[422689056,1779249039000,-1139.09162923,8.165e-05,2]
[422688997,1779249039000,-500.0,8.018e-05,2]
[422688996,1779249039000,-500.0,8.018e-05,2]
[422688995,1779249039000,-500.0,8.018e-05,2]
[422688998,1779249039000,-500.0,8.018e-05,2]
[422689000,1779249039000,-500.0,8.018e-05,2]
[422688999,1779249039000,-322.48438976,8.018e-05,2]
[422689003,1779249039000,-500.0,8.018e-05,2]
[422689002,1779249039000,-500.0,8.018e-05,2]
[422689001,1779249039000,-500.0,8.018e-05,2]
[422689005,1779249039000,-500.0,8.018e-05,2]
[422689007,1779249039000,-500.0,8.018e-05,2]
[422689008,1779249039000,-500.0,8.018e-05,2]
[422689004,1779249039000,-500.0,8.018e-05,2]
[422689006,1779249039000,-500.0,8.018e-05,2]
[422689009,1779249039000,-500.0,8.018e-05,2]
[422689016,1779249039000,-500.0,8.018e-05,2]
[422689013,1779249039000,-500.0,8.018e-05,2]
[422689014,1779249039000,-500.0,8.018e-05,2]
[422689011,1779249039000,-500.0,8.018e-05,2]
[422689015,1779249039000,-500.0,8.018e-05,2]
[422689018,1779249039000,-253.54838919,8.018e-05,2]
[422689012,1779249039000,-500.0,8.018e-05,2]
[422689017,1779249039000,-500.0,8.018e-05,2]
[422689020,1779249039000,-500.0,8.018e-05,2]
[422689021,1779249039000,-500.0,8.018e-05,2]
[422689024,1779249039000,-500.0,8.047e-05,2]
[422689022,1779249039000,-500.0,8.018e-05,2]
[422689026,1779249039000,-1200.0,8.116e-05,2]
[422689032,1779249039000,-500.45719674,8.117e-05,2]
[422689058,1779249039000,-171.31,8.189e-05,2]
[422689019,1779249039000,-500.0,8.018e-05,2]
[422689061,1779249039000,-500.0,8.219e-05,2]
[422689091,1779249039000,-500.0,8.219e-05,2]
[422689100,1779249039000,-500.0,8.219e-05,2]
[422689098,1779249039000,-500.0,8.219e-05,2]
[422689092,1779249039000,-500.0,8.219e-05,2]
[422689095,1779249039000,-500.0,8.219e-05,2]
[422689097,1779249039000,-500.0,8.219e-05,2]
[422689102,1779249039000,-500.36938756,8.219e-05,2]
[422689103,1779249039000,-1000.0,8.219e-05,2]
[422689104,1779249039000,-500.0,8.219e-05,2]
[422689105,1779249039000,-500.0,8.219e-05,2]
[422689122,1779249039000,-500.0,8.219e-05,2]
[422689107,1779249039000,-500.0,8.219e-05,2]
[422689114,1779249039000,-554.4946045,8.219e-05,2]
[422689115,1779249039000,-639.83402159,8.219e-05,2]
[422689110,1779249039000,-380.63818256,8.219e-05,2]
[422689108,1779249039000,-500.0,8.219e-05,2]
[422689109,1779249039000,-1325.96,8.219e-05,2]
[422689113,1779249039000,-500.0,8.219e-05,2]
[422689106,1779249039000,-798.9,8.219e-05,2]
[422689111,1779249039000,-500.0,8.219e-05,2]
[422689112,1779249039000,-500.0,8.219e-05,2]
[422689117,1779249039000,-500.0,8.219e-05,2]
[422689116,1779249039000,-500.50433149,8.219e-05,2]
[422689118,1779249039000,-500.0,8.219e-05,2]
[422689120,1779249039000,-500.0,8.219e-05,2]
[422689119,1779249039000,-500.0,8.219e-05,2]
[422689121,1779249039000,-1298.84,8.219e-05,2]
[422689123,1779249039000,-500.0,8.219e-05,2]
[422689124,1779249039000,-500.0,8.219e-05,2]
[422689096,1779249039000,-593.29,8.219e-05,2]
[422689090,1779249039000,-500.0,8.219e-05,2]
[422689055,1779249039000,-152.0,8.147e-05,7]
[422689094,1779249039000,-500.0,8.219e-05,2]
[422689063,1779249039000,-3394.448111,8.219e-05,2]
[422689062,1779249039000,-3985.5414,8.219e-05,2]
[422689064,1779249039000,-377.50065535,8.219e-05,2]
[422689065,1779249039000,-501.28,8.219e-05,2]
[422689073,1779249039000,-285.66561484,8.219e-05,2]
[422689074,1779249039000,-500.0,8.219e-05,2]
[422689071,1779249039000,-500.0,8.219e-05,2]
[422689072,1779249039000,-500.0,8.219e-05,2]
[422689099,1779249039000,-500.0,8.219e-05,2]
[422689067,1779249039000,-151.0,8.219e-05,2]
[422689066,1779249039000,-730.93,8.219e-05,2]
[422689069,1779249039000,-500.0,8.219e-05,2]
[422689068,1779249039000,-500.0,8.219e-05,2]
[422689075,1779249039000,-500.0,8.219e-05,2]
[422689076,1779249039000,-500.0,8.219e-05,2]
[422689070,1779249039000,-500.0,8.219e-05,2]
[422689078,1779249039000,-514.15,8.219e-05,2]
[422689086,1779249039000,-665.2,8.219e-05,2]
[422689101,1779249039000,-560.6,8.219e-05,2]
[422689093,1779249039000,-500.0,8.219e-05,2]
[422689089,1779249039000,-500.0,8.219e-05,2]
[422689081,1779249039000,-601.12904285,8.219e-05,2]
[422689083,1779249039000,-501.97518161,8.219e-05,2]
[422689088,1779249039000,-500.0,8.219e-05,2]
[422689084,1779249039000,-500.0,8.219e-05,2]
[422689080,1779249039000,-516.2,8.219e-05,2]
[422689082,1779249039000,-500.0,8.219e-05,2]
[422689079,1779249039000,-500.0,8.219e-05,2]
[422689087,1779249039000,-500.0,8.219e-05,2]
[422689077,1779249039000,-500.0,8.219e-05,2]
[422689085,1779249039000,-500.0,8.219e-05,2]
[422689165,1779249040000,-500.0,8.219e-05,2]
[422689186,1779249040000,-500.0,8.219e-05,2]
[422689185,1779249040000,-500.0,8.219e-05,2]
[422689174,1779249040000,-500.0,8.219e-05,2]
[422689175,1779249040000,-582.8,8.219e-05,2]
[422689173,1779249040000,-605.35,8.219e-05,2]
[422689166,1779249040000,-3125.43,8.219e-05,2]
[422689170,1779249040000,-500.0,8.219e-05,2]
[422689163,1779249040000,-500.46932947,8.219e-05,2]
[422689172,1779249040000,-500.0,8.219e-05,2]
[422689169,1779249040000,-151.57256181,8.219e-05,2]
[422689167,1779249040000,-1046.45,8.219e-05,2]
[422689168,1779249040000,-909.59,8.219e-05,2]
[422689187,1779249040000,-500.0,8.219e-05,2]
[422689193,1779249040000,-500.45183968,8.219e-05,2]
[422689188,1779249040000,-500.0,8.219e-05,2]
[422689178,1779249040000,-500.0,8.219e-05,2]
[422689177,1779249040000,-500.0,8.219e-05,2]
[422689180,1779249040000,-499.0,8.219e-05,2]
[422689181,1779249040000,-396.94690074,8.219e-05,2]
[422689184,1779249040000,-500.0,8.219e-05,2]
[422689182,1779249040000,-1059.8,8.219e-05,2]
[422689183,1779249040000,-503.05018435,8.219e-05,2]
[422689189,1779249040000,-500.0,8.219e-05,2]
[422689192,1779249040000,-500.64250582,8.219e-05,2]
[422689200,1779249040000,-1710.6,8.219e-05,2]
[422689190,1779249040000,-1085.6,8.219e-05,2]
[422689191,1779249040000,-584.54,8.219e-05,2]
[422689164,1779249040000,-500.0,8.219e-05,2]
[422689179,1779249040000,-500.0,8.219e-05,2]
[422689162,1779249040000,-500.0,8.219e-05,2]
[422689142,1779249040000,-495.73301438,8.219e-05,2]
[422689161,1779249040000,-500.0,8.219e-05,2]
[422689199,1779249040000,-500.69458992,8.219e-05,2]
[422689127,1779249040000,-500.0,8.219e-05,2]
[422689125,1779249040000,-500.0,8.219e-05,2]
[422689126,1779249040000,-500.0,8.219e-05,2]
[422689136,1779249040000,-500.0,8.219e-05,2]
[422689133,1779249040000,-500.0,8.219e-05,2]
[422689143,1779249040000,-663.08,8.219e-05,2]
[422689134,1779249040000,-500.0,8.219e-05,2]
[422689144,1779249040000,-500.79162383,8.219e-05,2]
[422689135,1779249040000,-581.20098427,8.219e-05,2]
[422689145,1779249040000,-500.0,8.219e-05,2]
[422689138,1779249040000,-500.0,8.219e-05,2]
[422689137,1779249040000,-500.43921827,8.219e-05,2]
[422689140,1779249040000,-500.0,8.219e-05,2]
[422689139,1779249040000,-500.0,8.219e-05,2]
[422689141,1779249040000,-500.0,8.219e-05,2]
[422689158,1779249040000,-500.0,8.219e-05,2]
[422689147,1779249040000,-500.0,8.219e-05,2]
[422689150,1779249040000,-500.53199158,8.219e-05,2]
[422689149,1779249040000,-500.0,8.219e-05,2]
[422689157,1779249040000,-522.36,8.219e-05,2]
[422689159,1779249040000,-501.12872936,8.219e-05,2]
[422689156,1779249040000,-500.0,8.219e-05,2]
[422689153,1779249040000,-500.73912532,8.219e-05,2]
[422689154,1779249040000,-500.84506144,8.219e-05,2]
[422689151,1779249040000,-500.0,8.219e-05,2]
[422689152,1779249040000,-378.22442414,8.219e-05,2]
[422689160,1779249040000,-500.0,8.219e-05,2]
[422689155,1779249040000,-500.0,8.219e-05,2]
[422689171,1779249040000,-545.04,8.219e-05,2]
[422689194,1779249040000,-500.0,8.219e-05,2]
[422689130,1779249040000,-1512.21,8.219e-05,2]
[422689195,1779249040000,-500.0,8.219e-05,2]
[422689239,1779249040000,-500.0,8.219e-05,2]
[422689238,1779249040000,-599.31,8.219e-05,2]
[422689228,1779249040000,-501.30975246,8.219e-05,2]
[422689234,1779249040000,-937.41,8.219e-05,2]
[422689235,1779249040000,-1878.75,8.219e-05,2]
[422689236,1779249040000,-500.0,8.219e-05,2]
[422689233,1779249040000,-500.0,8.219e-05,2]
[422689237,1779249040000,-500.82605001,8.219e-05,2]
[422689240,1779249040000,-500.0,8.219e-05,2]
[422689242,1779249040000,-500.0,8.219e-05,2]
[422689247,1779249040000,-500.0,8.219e-05,2]
[422689244,1779249040000,-500.0,8.219e-05,2]
[422689245,1779249040000,-500.0,8.219e-05,2]
[422689252,1779249040000,-1048.56,8.219e-05,2]
[422689241,1779249040000,-500.0,8.219e-05,2]
[422689249,1779249040000,-500.0,8.219e-05,2]
[422689253,1779249040000,-500.0,8.219e-05,2]
[422689243,1779249040000,-500.0,8.219e-05,2]
[422689251,1779249040000,-631.33466116,8.219e-05,2]
[422689246,1779249040000,-646.83,8.219e-05,2]
[422689248,1779249040000,-500.0,8.219e-05,2]
[422689250,1779249040000,-500.68,8.219e-05,2]
[422689255,1779249040000,-544.43041216,8.219e-05,2]
[422689254,1779249040000,-500.0,8.219e-05,2]
[422689256,1779249040000,-500.0,8.219e-05,2]
[422689257,1779249040000,-615.97,8.219e-05,2]
[422689259,1779249040000,-2031.08,8.219e-05,2]
[422689260,1779249040000,-500.0,8.219e-05,2]
[422689258,1779249040000,-3346.94,8.219e-05,2]
[422689232,1779249040000,-1376.05,8.219e-05,2]
[422689230,1779249040000,-500.0,8.219e-05,2]
[422689261,1779249040000,-522.75,8.219e-05,2]
[422689229,1779249040000,-500.0,8.219e-05,2]
[422689231,1779249040000,-1021.27,8.219e-05,2]
[422689196,1779249040000,-509.76,8.219e-05,2]
[422689197,1779249040000,-747.5,8.219e-05,2]
[422689202,1779249040000,-500.0,8.219e-05,2]
[422689203,1779249040000,-500.0,8.219e-05,2]
[422689201,1779249040000,-599.37,8.219e-05,2]
[422689205,1779249040000,-500.0,8.219e-05,2]
[422689213,1779249040000,-500.0,8.219e-05,2]
[422689214,1779249040000,-500.0,8.219e-05,2]
[422689212,1779249040000,-500.74569876,8.219e-05,2]
[422689211,1779249040000,-500.0,8.219e-05,2]
[422689204,1779249040000,-500.49706161,8.219e-05,2]
[422689208,1779249040000,-500.0,8.219e-05,2]
[422689207,1779249040000,-500.0,8.219e-05,2]
[422689210,1779249040000,-761.07,8.219e-05,2]
[422689198,1779249040000,-500.0,8.219e-05,2]
[422689209,1779249040000,-500.0,8.219e-05,2]
[422689206,1779249040000,-500.0,8.219e-05,2]
[422689227,1779249040000,-500.0,8.219e-05,2]
[422689224,1779249040000,-996.3853,8.219e-05,2]
[422689220,1779249040000,-3345.65,8.219e-05,2]
[422689221,1779249040000,-500.17677959,8.219e-05,2]
[422689225,1779249040000,-500.0,8.219e-05,2]
[422689219,1779249040000,-500.0,8.219e-05,2]
[422689223,1779249040000,-872.63,8.219e-05,2]
[422689218,1779249040000,-500.0,8.219e-05,2]
[422689217,1779249040000,-188.8140348,8.219e-05,2]
[422689226,1779249040000,-500.0,8.219e-05,2]
[422689215,1779249040000,-500.0,8.219e-05,2]
[422689216,1779249040000,-603.96,8.219e-05,2]
[422689222,1779249040000,-654.02,8.219e-05,2]
[422689302,1779249041000,-500.0,8.219e-05,2]
[422689299,1779249041000,-573.45,8.219e-05,2]
[422689301,1779249041000,-500.0,8.219e-05,2]
[422689297,1779249041000,-500.0,8.219e-05,2]
[422689303,1779249041000,-500.37081251,8.219e-05,2]
[422689305,1779249041000,-500.0,8.219e-05,2]
[422689307,1779249041000,-500.23661616,8.219e-05,2]
[422689304,1779249041000,-500.28963102,8.219e-05,2]
[422689298,1779249041000,-500.0,8.219e-05,2]
[422689300,1779249041000,-500.0,8.219e-05,2]
[422689296,1779249041000,-490.73038568,8.219e-05,2]
[422689295,1779249041000,-505.57,8.219e-05,2]
[422689306,1779249041000,-500.0,8.219e-05,2]
[422689311,1779249041000,-500.0,8.219e-05,2]
[422689319,1779249041000,-500.0,8.219e-05,2]
[422689320,1779249041000,-1260.78,8.219e-05,2]
[422689308,1779249041000,-500.0,8.219e-05,2]
[422689310,1779249041000,-635.54732141,8.219e-05,2]
[422689294,1779249041000,-500.0,8.219e-05,2]
[422689317,1779249041000,-500.17713438,8.219e-05,2]
[422689312,1779249041000,-500.0,8.219e-05,2]
[422689316,1779249041000,-500.0,8.219e-05,2]
[422689318,1779249041000,-1614.33,8.219e-05,2]
[422689315,1779249041000,-500.0,8.219e-05,2]
[422689314,1779249041000,-500.0,8.219e-05,2]
[422689313,1779249041000,-500.0,8.219e-05,2]
[422689321,1779249041000,-500.0,8.219e-05,2]
[422689324,1779249041000,-500.0,8.219e-05,2]
[422689309,1779249041000,-500.0,8.219e-05,2]
[422689290,1779249041000,-500.0,8.219e-05,2]
[422689287,1779249041000,-500.0,8.219e-05,2]
[422689291,1779249041000,-500.0,8.219e-05,2]
[422689323,1779249041000,-500.0,8.219e-05,2]
[422689267,1779249041000,-500.0,8.219e-05,2]
[422689266,1779249041000,-500.0,8.219e-05,2]
[422689265,1779249041000,-546.69,8.219e-05,2]
[422689262,1779249041000,-596.95,8.219e-05,2]
[422689263,1779249041000,-472.67613593,8.219e-05,2]
[422689264,1779249041000,-500.0,8.219e-05,2]
[422689268,1779249041000,-500.0,8.219e-05,2]
[422689270,1779249041000,-500.0,8.219e-05,2]
[422689278,1779249041000,-500.0,8.219e-05,2]
[422689279,1779249041000,-500.0,8.219e-05,2]
[422689271,1779249041000,-500.0,8.219e-05,2]
[422689276,1779249041000,-500.0,8.219e-05,2]
[422689289,1779249041000,-1212.36,8.219e-05,2]
[422689277,1779249041000,-500.0,8.219e-05,2]
[422689275,1779249041000,-500.0,8.219e-05,2]
[422689273,1779249041000,-466.1774628,8.219e-05,2]
[422689280,1779249041000,-500.0,8.219e-05,2]
[422689274,1779249041000,-551.86,8.219e-05,2]
[422689292,1779249041000,-1053.65,8.219e-05,2]
[422689282,1779249041000,-500.0,8.219e-05,2]
[422689293,1779249041000,-500.0,8.219e-05,2]
[422689283,1779249041000,-500.0,8.219e-05,2]
[422689284,1779249041000,-500.0,8.219e-05,2]
[422689286,1779249041000,-500.0,8.219e-05,2]
[422689285,1779249041000,-792.03,8.219e-05,2]
[422689281,1779249041000,-500.0,8.219e-05,2]
[422689288,1779249041000,-500.0,8.219e-05,2]
[422689269,1779249041000,-500.0,8.219e-05,2]
[422689272,1779249041000,-500.0,8.219e-05,2]
[422689325,1779249041000,-500.0,8.219e-05,2]
[422689331,1779249041000,-500.0,8.219e-05,2]
[422689371,1779249041000,-472.97569978,8.219e-05,2]
[422689365,1779249041000,-500.0,8.219e-05,2]
[422689368,1779249041000,-500.0,8.219e-05,2]
[422689369,1779249041000,-2463.23,8.219e-05,2]
[422689362,1779249041000,-500.0,8.219e-05,2]
[422689370,1779249041000,-500.0,8.219e-05,2]
[422689361,1779249041000,-500.0,8.219e-05,2]
[422689364,1779249041000,-3361.27,8.219e-05,2]
[422689367,1779249041000,-543.83,8.219e-05,2]
[422689373,1779249041000,-640.86123793,8.219e-05,2]
[422689372,1779249041000,-500.0,8.219e-05,2]
[422689380,1779249041000,-3238.28,8.219e-05,2]
[422689383,1779249041000,-500.0,8.219e-05,2]
[422689374,1779249041000,-500.0,8.219e-05,2]
[422689377,1779249041000,-501.21696842,8.219e-05,2]
[422689385,1779249041000,-156.91349984,8.219e-05,2]
[422689376,1779249041000,-209.56184236,8.219e-05,2]
[422689378,1779249041000,-500.0,8.219e-05,2]
[422689382,1779249041000,-500.0,8.219e-05,2]
[422689381,1779249041000,-500.0,8.219e-05,2]
[422689379,1779249041000,-500.0,8.219e-05,2]
[422689375,1779249041000,-500.0,8.219e-05,2]
[422689389,1779249041000,-500.7723669,8.219e-05,2]
[422689386,1779249041000,-500.0,8.219e-05,2]
[422689388,1779249041000,-500.0,8.219e-05,2]
[422689387,1779249041000,-2231.45,8.219e-05,2]
[422689390,1779249041000,-500.0,8.219e-05,2]
[422689391,1779249041000,-500.0,8.219e-05,2]
[422689326,1779249041000,-500.19014024,8.219e-05,2]
[422689366,1779249041000,-561.21251426,8.219e-05,2]
[422689363,1779249041000,-500.0,8.219e-05,2]
[422689384,1779249041000,-500.10341222,8.219e-05,2]
[422689359,1779249041000,-500.0,8.219e-05,2]
[422689360,1779249041000,-500.0,8.219e-05,2]
[422689329,1779249041000,-500.0,8.219e-05,2]
[422689328,1779249041000,-500.61817377,8.219e-05,2]
[422689327,1779249041000,-500.0,8.219e-05,2]
[422689330,1779249041000,-500.0,8.219e-05,2]
[422689335,1779249041000,-500.0,8.219e-05,2]
[422689333,1779249041000,-500.0,8.219e-05,2]
[422689334,1779249041000,-500.0,8.219e-05,2]
[422689350,1779249041000,-500.0,8.219e-05,2]
[422689349,1779249041000,-629.22,8.219e-05,2]
[422689348,1779249041000,-500.0,8.219e-05,2]
[422689337,1779249041000,-500.0,8.219e-05,2]
[422689339,1779249041000,-958.85,8.219e-05,2]
[422689343,1779249041000,-500.3327274,8.219e-05,2]
[422689341,1779249041000,-500.0,8.219e-05,2]
[422689322,1779249041000,-500.0,8.219e-05,2]
[422689358,1779249041000,-500.0,8.219e-05,2]
[422689340,1779249041000,-500.0,8.219e-05,2]
[422689356,1779249041000,-500.16009328,8.219e-05,2]
[422689353,1779249041000,-500.0,8.219e-05,2]
[422689354,1779249041000,-500.0,8.219e-05,2]
[422689357,1779249041000,-412.45363609,8.219e-05,2]
[422689355,1779249041000,-1474.95,8.219e-05,2]
[422689352,1779249041000,-1700.57,8.219e-05,2]
[422689346,1779249041000,-500.0,8.219e-05,2]
[422689347,1779249041000,-500.0,8.219e-05,2]
[422689345,1779249041000,-500.0,8.219e-05,2]
[422689344,1779249041000,-927.77,8.219e-05,2]
[422689342,1779249041000,-7300.87,8.219e-05,2]
[422689351,1779249041000,-500.0,8.219e-05,2]
[422689439,1779249042000,-500.0,8.219e-05,2]
[422689434,1779249042000,-500.27701896,8.219e-05,2]
[422689427,1779249042000,-500.0,8.219e-05,2]
[422689432,1779249042000,-5944.77,8.219e-05,2]
[422689440,1779249042000,-500.0,8.219e-05,2]
[422689433,1779249042000,-4544.81,8.219e-05,2]
[422689422,1779249042000,-500.0,8.219e-05,2]
[422689429,1779249042000,-500.0,8.219e-05,2]
[422689436,1779249042000,-810.54,8.219e-05,2]
[422689438,1779249042000,-500.0,8.219e-05,2]
[422689428,1779249042000,-2357.37,8.219e-05,2]
[422689431,1779249042000,-500.0,8.219e-05,2]
[422689423,1779249042000,-500.0,8.219e-05,2]
[422689437,1779249042000,-500.0,8.219e-05,2]
[422689435,1779249042000,-500.0,8.219e-05,2]
[422689447,1779249042000,-500.0,8.219e-05,2]
[422689441,1779249042000,-4625.68,8.219e-05,2]
[422689442,1779249042000,-1091.4,8.219e-05,2]
[422689448,1779249042000,-6662.64,8.219e-05,2]
[422689449,1779249042000,-1645.56,8.219e-05,2]
[422689446,1779249042000,-500.0,8.219e-05,2]
[422689445,1779249042000,-556.57721799,8.219e-05,2]
[422689443,1779249042000,-500.11613312,8.219e-05,2]
[422689444,1779249042000,-33279.63,8.219e-05,2]
[422689451,1779249042000,-434.07275326,8.219e-05,2]
[422689450,1779249042000,-566.85826078,8.219e-05,2]
[422689453,1779249042000,-500.0,8.219e-05,2]
[422689452,1779249042000,-500.0,8.219e-05,2]
[422689455,1779249042000,-500.0,8.219e-05,2]
[422689467,1779249042000,-500.0,8.219e-05,2]
[422689430,1779249042000,-500.0,8.219e-05,2]
[422689417,1779249042000,-500.0,8.219e-05,2]
[422689395,1779249042000,-2787.97,8.219e-05,2]
[422689421,1779249042000,-2195.67,8.219e-05,2]
[422689393,1779249042000,-500.0,8.219e-05,2]
[422689397,1779249042000,-500.0,8.219e-05,2]
[422689398,1779249042000,-500.0,8.219e-05,2]
[422689396,1779249042000,-500.0,8.219e-05,2]
[422689392,1779249042000,-500.0,8.219e-05,2]
[422689394,1779249042000,-538.55116179,8.219e-05,2]
[422689400,1779249042000,-803.8,8.219e-05,2]
[422689410,1779249042000,-500.0,8.219e-05,2]
[422689465,1779249042000,-500.0,8.219e-05,2]
[422689412,1779249042000,-2435.38,8.219e-05,2]
[422689407,1779249042000,-500.22679675,8.219e-05,2]
[422689404,1779249042000,-500.0,8.219e-05,2]
[422689411,1779249042000,-541.16,8.219e-05,2]
[422689405,1779249042000,-500.0,8.219e-05,2]
[422689419,1779249042000,-500.0,8.219e-05,2]
[422689401,1779249042000,-500.0,8.219e-05,2]
[422689408,1779249042000,-500.15148541,8.219e-05,2]
[422689402,1779249042000,-729.57,8.219e-05,2]